[Event "Titled Tuesday Blitz December 14 2021"]
[White "Vidit, Santosh Gujrathi"]
[Black "Tsyhanchuk, Stanislav"]
[WhiteFideId "5029465"]
[BlackFideId "13505130"]
[WhiteElo "2628"]
[BlackElo "2078"]
[Result "1-0"]
[Round "01"]
[TimeControl "180+1"]
[Date "2021.12.14"]
[WhiteClock "0:00:14"]
[BlackClock "0:00:05"]

1. e4 {[%clk 0:03:00]}  c6 {[%clk 0:02:57]} 2. d4 {[%clk 0:03:00]}  d5 {[%clk 0:02:57]} 3. e5 {[%clk 0:03:01]}  c5 {[%clk 0:02:56]} 4. Nf3 {[%clk 0:02:57]}  Nc6 {[%clk 0:02:56]} 5. dxc5 {[%clk 0:02:56]}  Bg4 {[%clk 0:02:50]} 6. c3 {[%clk 0:02:45]}  e6 {[%clk 0:02:47]} 7. Be3 {[%clk 0:02:41]}  Bxf3 {[%clk 0:02:37]} 8. Qxf3 {[%clk 0:02:40]}  Nxe5 {[%clk 0:02:37]} 9. Bb5+ {[%clk 0:02:23]}  Nc6 {[%clk 0:02:36]} 10. O-O {[%clk 0:02:13]}  Nf6 {[%clk 0:02:35]} 11. Nd2 {[%clk 0:01:35]}  a6 {[%clk 0:02:28]} 12. Bxc6+ {[%clk 0:01:12]}  bxc6 {[%clk 0:02:29]} 13. b4 {[%clk 0:01:10]}  Be7 {[%clk 0:02:28]} 14. Nb3 {[%clk 0:01:08]}  O-O {[%clk 0:02:27]} 15. Bd4 {[%clk 0:01:06]}  Ne4 {[%clk 0:02:16]} 16. Rfe1 {[%clk 0:01:05]}  Bf6 {[%clk 0:02:15]} 17. Qd3 {[%clk 0:01:02]}  Bxd4 {[%clk 0:02:13]} 18. cxd4 {[%clk 0:01:02]}  Qb8 {[%clk 0:01:53]} 19. f3 {[%clk 0:00:59]}  Nf6 {[%clk 0:01:48]} 20. Qc3 {[%clk 0:01:00]}  Nd7 {[%clk 0:01:41]} 21. a4 {[%clk 0:00:56]}  Qc7 {[%clk 0:01:38]} 22. Rab1 {[%clk 0:00:56]}  Rab8 {[%clk 0:01:35]} 23. Nc1 {[%clk 0:00:56]}  Rfe8 {[%clk 0:01:33]} 24. Nd3 {[%clk 0:00:56]}  f6 {[%clk 0:01:29]} 25. Rb2 {[%clk 0:00:49]}  Nf8 {[%clk 0:01:11]} 26. Re3 {[%clk 0:00:36]}  Re7 {[%clk 0:01:03]} 27. Qe1 {[%clk 0:00:36]}  Rbe8 {[%clk 0:00:51]} 28. Rbe2 {[%clk 0:00:35]}  Qb8 {[%clk 0:00:49]} 29. f4 {[%clk 0:00:31]}  g6 {[%clk 0:00:30]} 30. Qh4 {[%clk 0:00:28]}  Kg7 {[%clk 0:00:28]} 31. Qe1 {[%clk 0:00:19]}  Qa7 {[%clk 0:00:24]} 32. g4 {[%clk 0:00:18]}  a5 {[%clk 0:00:21]} 33. b5 {[%clk 0:00:18]}  cxb5 {[%clk 0:00:19]} 34. axb5 {[%clk 0:00:19]}  Qb7 {[%clk 0:00:19]} 35. b6 {[%clk 0:00:19]}  a4 {[%clk 0:00:18]} 36. g5 {[%clk 0:00:20]}  Ra8 {[%clk 0:00:15]} 37. gxf6+ {[%clk 0:00:18]}  Kxf6 {[%clk 0:00:16]} 38. Ra2 {[%clk 0:00:18]}  a3 {[%clk 0:00:15]} 39. Ne5 {[%clk 0:00:17]}  Ree8 {[%clk 0:00:08]} 40. Rexa3 {[%clk 0:00:15]}  Rxa3 {[%clk 0:00:07]} 41. Rxa3 {[%clk 0:00:16]}  Ra8 {[%clk 0:00:06]} 42. Qh4+ {[%clk 0:00:16]}  Kf5 {[%clk 0:00:06]} 43. Qg4+ {[%clk 0:00:13]}  Ke4 {[%clk 0:00:05]} 44. f5# {[%clk 0:00:14]} 1-0


[Site "https://www.chess.com"]

[Event "Titled Tuesday Blitz December 14 2021"]
[White "Zhigalko, Sergei"]
[Black "Bayo Milagro, Alvaro"]
[WhiteFideId "13502956"]
[BlackFideId "22275240"]
[WhiteElo "2662"]
[BlackElo "2270"]
[Result "1-0"]
[Round "01"]
[TimeControl "180+1"]
[Date "2021.12.14"]
[WhiteClock "0:00:06"]
[BlackClock "0:00:16"]

1. e4 {[%clk 0:03:00]}  e5 {[%clk 0:02:59]} 2. Nf3 {[%clk 0:03:01]}  Nc6 {[%clk 0:03:00]} 3. Bc4 {[%clk 0:03:00]}  Nf6 {[%clk 0:03:01]} 4. d3 {[%clk 0:02:59]}  Bc5 {[%clk 0:03:01]} 5. O-O {[%clk 0:02:59]}  d6 {[%clk 0:03:01]} 6. Nbd2 {[%clk 0:02:59]}  O-O {[%clk 0:02:59]} 7. c3 {[%clk 0:02:56]}  a5 {[%clk 0:02:58]} 8. h3 {[%clk 0:02:55]}  Be6 {[%clk 0:02:57]} 9. Bb5 {[%clk 0:02:55]}  Qb8 {[%clk 0:02:52]} 10. Nb3 {[%clk 0:02:40]}  Bb6 {[%clk 0:02:50]} 11. Bg5 {[%clk 0:02:40]}  Nd7 {[%clk 0:02:36]} 12. d4 {[%clk 0:02:33]}  a4 {[%clk 0:02:28]} 13. d5 {[%clk 0:02:09]}  axb3 {[%clk 0:02:26]} 14. axb3 {[%clk 0:02:03]}  Rxa1 {[%clk 0:02:21]} 15. Qxa1 {[%clk 0:02:04]}  Nc5 {[%clk 0:02:13]} 16. dxe6 {[%clk 0:01:58]}  Nxe6 {[%clk 0:01:56]} 17. Bc4 {[%clk 0:01:47]}  Nxg5 {[%clk 0:01:54]} 18. Nxg5 {[%clk 0:01:48]}  h6 {[%clk 0:01:48]} 19. Nf3 {[%clk 0:01:34]}  Na5 {[%clk 0:01:42]} 20. Nd2 {[%clk 0:01:10]}  Nxc4 {[%clk 0:01:39]} 21. Nxc4 {[%clk 0:01:11]}  Ba7 {[%clk 0:01:35]} 22. b4 {[%clk 0:01:02]}  b5 {[%clk 0:01:34]} 23. Na5 {[%clk 0:00:58]}  Bb6 {[%clk 0:01:31]} 24. Nc6 {[%clk 0:00:54]}  Qe8 {[%clk 0:01:24]} 25. Na5 {[%clk 0:00:47]}  f5 {[%clk 0:01:23]} 26. Qb1 {[%clk 0:00:28]}  f4 {[%clk 0:01:13]} 27. Qd3 {[%clk 0:00:26]}  Kh8 {[%clk 0:00:51]} 28. Kh2 {[%clk 0:00:25]}  Qd7 {[%clk 0:00:41]} 29. Nb3 {[%clk 0:00:15]}  Ra8 {[%clk 0:00:32]} 30. Nd2 {[%clk 0:00:11]}  Ra2 {[%clk 0:00:30]} 31. Qb1 {[%clk 0:00:11]}  Ra4 {[%clk 0:00:27]} 32. Nf3 {[%clk 0:00:10]}  Qc6 {[%clk 0:00:27]} 33. Nd2 {[%clk 0:00:09]}  Qb7 {[%clk 0:00:26]} 34. Qd3 {[%clk 0:00:09]}  Ba7 {[%clk 0:00:21]} 35. Nf3 {[%clk 0:00:09]}  Ra2 {[%clk 0:00:21]} 36. Qb1 {[%clk 0:00:08]}  Ra4 {[%clk 0:00:21]} 37. Nh4 {[%clk 0:00:07]}  Kh7 {[%clk 0:00:20]} 38. Qd3 {[%clk 0:00:06]}  Ra2 {[%clk 0:00:20]} 39. Qb1 {[%clk 0:00:07]}  Ra4 {[%clk 0:00:20]} 40. Nf5 {[%clk 0:00:07]}  Qc6 {[%clk 0:00:20]} 41. f3 {[%clk 0:00:05]}  Qc4 {[%clk 0:00:20]} 42. b3 {[%clk 0:00:05]}  Qxc3 {[%clk 0:00:18]} 43. bxa4 {[%clk 0:00:06]}  bxa4 {[%clk 0:00:19]} 44. Rc1 {[%clk 0:00:06]}  Qd2 {[%clk 0:00:17]} 45. Rxc7 {[%clk 0:00:06]}  Bf2 {[%clk 0:00:16]} 46. Rxg7+ {[%clk 0:00:06]} 1-0


[Site "https://www.chess.com"]

[Event "Titled Tuesday Blitz December 14 2021"]
[White "Adewumi, Tanitoluwa"]
[Black "Makarian, Rudik"]
[WhiteFideId "30966396"]
[BlackFideId "44105681"]
[WhiteElo "2554"]
[BlackElo "2486"]
[Result "0-1"]
[Round "02"]
[TimeControl "180+1"]
[Date "2021.12.14"]
[WhiteClock "0:00:06"]
[BlackClock "0:00:28"]

1. Nf3 {[%clk 0:02:56]}  Nf6 {[%clk 0:02:30]} 2. d4 {[%clk 0:02:56]}  e6 {[%clk 0:02:26]} 3. c4 {[%clk 0:02:52]}  d5 {[%clk 0:02:23]} 4. Nc3 {[%clk 0:02:53]}  dxc4 {[%clk 0:02:23]} 5. e4 {[%clk 0:02:53]}  b5 {[%clk 0:02:23]} 6. e5 {[%clk 0:02:53]}  Nd5 {[%clk 0:02:22]} 7. Nxb5 {[%clk 0:02:54]}  Nb6 {[%clk 0:02:23]} 8. Be2 {[%clk 0:02:50]}  Nc6 {[%clk 0:02:22]} 9. O-O {[%clk 0:02:42]}  Be7 {[%clk 0:02:22]} 10. Qd2 {[%clk 0:02:38]}  O-O {[%clk 0:02:21]} 11. Qf4 {[%clk 0:02:34]}  Bb7 {[%clk 0:02:21]} 12. Rd1 {[%clk 0:02:30]}  Nb4 {[%clk 0:02:18]} 13. Nc3 {[%clk 0:02:28]}  Kh8 {[%clk 0:02:16]} 14. Qg4 {[%clk 0:02:25]}  Qd7 {[%clk 0:02:12]} 15. Qh3 {[%clk 0:02:12]}  N4d5 {[%clk 0:02:05]} 16. Ng5 {[%clk 0:01:46]}  Bxg5 {[%clk 0:02:01]} 17. Bxg5 {[%clk 0:01:47]}  f5 {[%clk 0:01:53]} 18. exf6 {[%clk 0:01:09]}  gxf6 {[%clk 0:01:53]} 19. Bh6 {[%clk 0:01:05]}  Rg8 {[%clk 0:01:51]} 20. Bf3 {[%clk 0:01:02]}  Rg6 {[%clk 0:01:46]} 21. Ne4 {[%clk 0:00:31]}  Na4 {[%clk 0:01:02]} 22. b3 {[%clk 0:00:27]}  cxb3 {[%clk 0:01:03]} 23. axb3 {[%clk 0:00:28]}  Nac3 {[%clk 0:01:03]} 24. Nc5 {[%clk 0:00:29]}  Qb5 {[%clk 0:00:51]} 25. Re1 {[%clk 0:00:29]}  Rag8 {[%clk 0:00:49]} 26. Qxe6 {[%clk 0:00:27]}  Nf4 {[%clk 0:00:29]} 27. Bxf4 {[%clk 0:00:19]}  Rxg2+ {[%clk 0:00:29]} 28. Kh1 {[%clk 0:00:14]}  Bxf3 {[%clk 0:00:28]} 29. Re3 {[%clk 0:00:06]}  Rg1# {[%clk 0:00:28]} 0-1


[Site "https://www.chess.com"]

[Event "Titled Tuesday Blitz December 14 2021"]
[White "Artemenko, Oleg"]
[Black "Andreikin, Dmitry"]
[WhiteFideId "14201798"]
[BlackFideId "4158814"]
[WhiteElo "2287"]
[BlackElo "2736"]
[Result "1-0"]
[Round "02"]
[TimeControl "180+1"]
[Date "2021.12.14"]
[WhiteClock "0:00:23"]
[BlackClock "0:00:01"]

1. d4 {[%clk 0:03:00]}  Nf6 {[%clk 0:02:59]} 2. Nc3 {[%clk 0:03:01]}  e6 {[%clk 0:02:56]} 3. Bf4 {[%clk 0:03:00]}  Bb4 {[%clk 0:02:55]} 4. e3 {[%clk 0:03:00]}  O-O {[%clk 0:02:54]} 5. a3 {[%clk 0:02:58]}  Bxc3+ {[%clk 0:02:52]} 6. bxc3 {[%clk 0:02:59]}  Nd5 {[%clk 0:02:52]} 7. Ne2 {[%clk 0:02:59]}  Nxf4 {[%clk 0:02:50]} 8. Nxf4 {[%clk 0:03:00]}  d6 {[%clk 0:02:48]} 9. Bd3 {[%clk 0:02:56]}  Nd7 {[%clk 0:02:43]} 10. Qh5 {[%clk 0:02:49]}  Nf6 {[%clk 0:02:42]} 11. Qh4 {[%clk 0:02:48]}  h6 {[%clk 0:02:32]} 12. Rd1 {[%clk 0:02:38]}  b6 {[%clk 0:02:27]} 13. g4 {[%clk 0:02:31]}  Bb7 {[%clk 0:02:17]} 14. Rg1 {[%clk 0:02:31]}  Ne4 {[%clk 0:02:14]} 15. Qxd8 {[%clk 0:02:05]}  Rfxd8 {[%clk 0:02:15]} 16. Bxe4 {[%clk 0:01:58]}  Bxe4 {[%clk 0:02:15]} 17. Nd3 {[%clk 0:01:57]}  c5 {[%clk 0:02:12]} 18. Rc1 {[%clk 0:01:52]}  Rac8 {[%clk 0:02:10]} 19. Kd2 {[%clk 0:01:53]}  Rc7 {[%clk 0:01:58]} 20. Rg3 {[%clk 0:01:44]}  Rdc8 {[%clk 0:01:57]} 21. Nb2 {[%clk 0:01:44]}  cxd4 {[%clk 0:01:48]} 22. exd4 {[%clk 0:01:44]}  e5 {[%clk 0:01:48]} 23. dxe5 {[%clk 0:01:37]}  dxe5 {[%clk 0:01:47]} 24. Re1 {[%clk 0:01:37]}  Rd7+ {[%clk 0:01:37]} 25. Kc1 {[%clk 0:01:36]}  Bg6 {[%clk 0:01:34]} 26. Rxe5 {[%clk 0:01:36]}  Rcd8 {[%clk 0:01:35]} 27. Ree3 {[%clk 0:01:24]}  Rd5 {[%clk 0:01:28]} 28. f4 {[%clk 0:01:21]}  f6 {[%clk 0:01:25]} 29. c4 {[%clk 0:01:15]}  Rd2 {[%clk 0:01:17]} 30. f5 {[%clk 0:01:14]}  Bf7 {[%clk 0:01:17]} 31. Rd3 {[%clk 0:01:14]}  R8xd3 {[%clk 0:01:16]} 32. Rxd3 {[%clk 0:01:14]}  Rxh2 {[%clk 0:01:14]} 33. Rd8+ {[%clk 0:01:14]}  Kh7 {[%clk 0:01:14]} 34. Rd7 {[%clk 0:01:15]}  h5 {[%clk 0:00:56]} 35. Rxf7 {[%clk 0:00:55]}  hxg4 {[%clk 0:00:55]} 36. Nd3 {[%clk 0:00:55]}  g3 {[%clk 0:00:53]} 37. Nf4 {[%clk 0:00:55]}  g2 {[%clk 0:00:27]} 38. Nxg2 {[%clk 0:00:55]}  Rxg2 {[%clk 0:00:28]} 39. Rxa7 {[%clk 0:00:56]}  Rg5 {[%clk 0:00:28]} 40. Rb7 {[%clk 0:00:54]}  Rxf5 {[%clk 0:00:28]} 41. Rxb6 {[%clk 0:00:54]}  g5 {[%clk 0:00:29]} 42. Rb5 {[%clk 0:00:51]}  Rf4 {[%clk 0:00:24]} 43. c5 {[%clk 0:00:33]}  g4 {[%clk 0:00:24]} 44. c6 {[%clk 0:00:29]}  g3 {[%clk 0:00:13]} 45. Rb3 {[%clk 0:00:29]}  Rg4 {[%clk 0:00:07]} 46. c7 {[%clk 0:00:29]}  g2 {[%clk 0:00:07]} 47. c8=Q {[%clk 0:00:28]}  g1=Q+ {[%clk 0:00:07]} 48. Kb2 {[%clk 0:00:28]}  Qd4+ {[%clk 0:00:05]} 49. Ka2 {[%clk 0:00:28]}  Rh4 {[%clk 0:00:04]} 50. Rb7+ {[%clk 0:00:26]}  Kg6 {[%clk 0:00:04]} 51. Qg8+ {[%clk 0:00:25]}  Kf5 {[%clk 0:00:04]} 52. Rb5+ {[%clk 0:00:25]}  Ke4 {[%clk 0:00:03]} 53. Rb4 {[%clk 0:00:26]}  Ke3 {[%clk 0:00:03]} 54. Rxd4 {[%clk 0:00:26]}  Rxd4 {[%clk 0:00:04]} 55. Kb3 {[%clk 0:00:24]}  f5 {[%clk 0:00:04]} 56. Qe6+ {[%clk 0:00:23]}  Kf4 {[%clk 0:00:03]} 57. a4 {[%clk 0:00:23]}  Re4 {[%clk 0:00:03]} 58. Qh6+ {[%clk 0:00:23]}  Kg3 {[%clk 0:00:03]} 59. a5 {[%clk 0:00:24]}  f4 {[%clk 0:00:03]} 60. a6 {[%clk 0:00:25]}  f3 {[%clk 0:00:04]} 61. a7 {[%clk 0:00:25]}  Rh4 {[%clk 0:00:02]} 62. Qd6+ {[%clk 0:00:24]}  Kg2 {[%clk 0:00:02]} 63. a8=Q {[%clk 0:00:24]}  Rh3 {[%clk 0:00:02]} 64. Qf4 {[%clk 0:00:24]}  Kg1 {[%clk 0:00:01]} 65. Qaxf3 {[%clk 0:00:23]}  Rg3 {[%clk 0:00:01]} 66. Q4xg3# {[%clk 0:00:23]} 1-0


[Site "https://www.chess.com"]

[Event "Titled Tuesday Blitz December 14 2021"]
[White "Artemiev, Vladislav"]
[Black "Kalashian, David"]
[WhiteFideId "24101605"]
[BlackFideId "13302418"]
[WhiteElo "2830"]
[BlackElo "2490"]
[Result "1-0"]
[Round "02"]
[TimeControl "180+1"]
[Date "2021.12.14"]
[WhiteClock "0:00:20"]
[BlackClock "0:00:09"]

1. d4 {[%clk 0:02:59]}  Nf6 {[%clk 0:02:59]} 2. Nf3 {[%clk 0:02:59]}  e6 {[%clk 0:02:57]} 3. Bg5 {[%clk 0:02:58]}  h6 {[%clk 0:02:57]} 4. Bh4 {[%clk 0:02:58]}  g5 {[%clk 0:02:57]} 5. Bg3 {[%clk 0:02:58]}  Ne4 {[%clk 0:02:58]} 6. Nbd2 {[%clk 0:02:52]}  Nxg3 {[%clk 0:02:58]} 7. hxg3 {[%clk 0:02:52]}  Bg7 {[%clk 0:02:59]} 8. c3 {[%clk 0:02:52]}  d6 {[%clk 0:02:59]} 9. e4 {[%clk 0:02:52]}  Nc6 {[%clk 0:03:00]} 10. Nc4 {[%clk 0:02:49]}  Qe7 {[%clk 0:02:57]} 11. Ne3 {[%clk 0:02:47]}  Bd7 {[%clk 0:02:55]} 12. Qc2 {[%clk 0:02:42]}  O-O-O {[%clk 0:02:54]} 13. O-O-O {[%clk 0:02:42]}  Rde8 {[%clk 0:02:50]} 14. g4 {[%clk 0:02:35]}  Rhf8 {[%clk 0:02:41]} 15. Bd3 {[%clk 0:02:31]}  Qd8 {[%clk 0:02:40]} 16. Kb1 {[%clk 0:02:12]}  Ne7 {[%clk 0:02:38]} 17. Rhe1 {[%clk 0:02:11]}  Kb8 {[%clk 0:02:34]} 18. Qb3 {[%clk 0:02:03]}  Qc8 {[%clk 0:02:31]} 19. Bb5 {[%clk 0:02:01]}  f5 {[%clk 0:02:10]} 20. gxf5 {[%clk 0:01:15]}  exf5 {[%clk 0:02:08]} 21. Bxd7 {[%clk 0:01:10]}  Qxd7 {[%clk 0:02:09]} 22. e5 {[%clk 0:01:11]}  d5 {[%clk 0:01:28]} 23. Nc2 {[%clk 0:00:50]}  Qe6 {[%clk 0:01:24]} 24. Nb4 {[%clk 0:00:50]}  Ka8 {[%clk 0:01:15]} 25. Nd3 {[%clk 0:00:49]}  b6 {[%clk 0:01:13]} 26. g3 {[%clk 0:00:36]}  f4 {[%clk 0:01:08]} 27. gxf4 {[%clk 0:00:36]}  g4 {[%clk 0:01:00]} 28. Nh4 {[%clk 0:00:30]}  h5 {[%clk 0:00:58]} 29. f5 {[%clk 0:00:27]}  Nxf5 {[%clk 0:00:58]} 30. Nf4 {[%clk 0:00:27]}  Qc6 {[%clk 0:00:49]} 31. Nhg6 {[%clk 0:00:24]}  Rg8 {[%clk 0:00:36]} 32. Qxd5 {[%clk 0:00:24]}  Qxd5 {[%clk 0:00:35]} 33. Nxd5 {[%clk 0:00:24]}  Kb7 {[%clk 0:00:35]} 34. Rh1 {[%clk 0:00:23]}  Re6 {[%clk 0:00:09]} 35. Ndf4 {[%clk 0:00:20]}  Rc6 {[%clk 0:00:09]} 36. Rxh5 {[%clk 0:00:20]} 1-0


[Site "https://www.chess.com"]

[Event "Titled Tuesday Blitz December 14 2021"]
[White "Atabayev, Saparmyrat"]
[Black "Najdin, Danil"]
[WhiteFideId "14000571"]
[BlackFideId "4172426"]
[WhiteElo "2483"]
[BlackElo "2240"]
[Result "1/2-1/2"]
[Round "02"]
[TimeControl "180+1"]
[Date "2021.12.15"]
[WhiteClock "0:00:34"]
[BlackClock "0:00:17"]

1. e4 {[%clk 0:03:00]}  e5 {[%clk 0:02:59]} 2. Nf3 {[%clk 0:02:59]}  Nc6 {[%clk 0:03:00]} 3. Bb5 {[%clk 0:02:59]}  a6 {[%clk 0:02:59]} 4. Bxc6 {[%clk 0:02:59]}  dxc6 {[%clk 0:03:00]} 5. Nc3 {[%clk 0:03:00]}  f6 {[%clk 0:02:47]} 6. d4 {[%clk 0:02:57]}  exd4 {[%clk 0:02:47]} 7. Nxd4 {[%clk 0:02:58]}  c5 {[%clk 0:02:36]} 8. Nde2 {[%clk 0:02:57]}  Qxd1+ {[%clk 0:02:35]} 9. Nxd1 {[%clk 0:02:58]}  f5 {[%clk 0:02:30]} 10. Ndc3 {[%clk 0:02:53]}  fxe4 {[%clk 0:02:18]} 11. Nxe4 {[%clk 0:02:54]}  Bf5 {[%clk 0:02:11]} 12. N2g3 {[%clk 0:02:54]}  Bg6 {[%clk 0:02:11]} 13. Bd2 {[%clk 0:02:48]}  O-O-O {[%clk 0:02:08]} 14. O-O-O {[%clk 0:02:48]}  Nf6 {[%clk 0:01:55]} 15. Nxf6 {[%clk 0:02:46]}  gxf6 {[%clk 0:01:56]} 16. Bc3 {[%clk 0:02:44]}  Bh6+ {[%clk 0:01:43]} 17. Kb1 {[%clk 0:02:43]}  Rxd1+ {[%clk 0:01:38]} 18. Rxd1 {[%clk 0:02:44]}  b6 {[%clk 0:01:33]} 19. h4 {[%clk 0:02:36]}  Re8 {[%clk 0:01:30]} 20. h5 {[%clk 0:02:30]}  Be4 {[%clk 0:01:27]} 21. Re1 {[%clk 0:02:04]}  Bc6 {[%clk 0:01:26]} 22. Rxe8+ {[%clk 0:02:04]}  Bxe8 {[%clk 0:01:27]} 23. Bxf6 {[%clk 0:02:04]}  Bf4 {[%clk 0:01:27]} 24. Ne2 {[%clk 0:02:04]}  Bd2 {[%clk 0:01:22]} 25. g4 {[%clk 0:02:04]}  Bc6 {[%clk 0:01:18]} 26. g5 {[%clk 0:01:19]}  Be8 {[%clk 0:01:18]} 27. Ng3 {[%clk 0:01:03]}  Bf4 {[%clk 0:01:14]} 28. Ne2 {[%clk 0:01:03]}  Bd2 {[%clk 0:01:14]} 29. h6 {[%clk 0:01:04]}  Kd7 {[%clk 0:01:08]} 30. f4 {[%clk 0:01:00]}  Bg6 {[%clk 0:01:08]} 31. Be5 {[%clk 0:00:59]}  c6 {[%clk 0:01:05]} 32. Ng3 {[%clk 0:00:57]}  Ke6 {[%clk 0:01:05]} 33. b3 {[%clk 0:00:57]}  Be1 {[%clk 0:00:45]} 34. Nf1 {[%clk 0:00:54]}  b5 {[%clk 0:00:34]} 35. Kc1 {[%clk 0:00:50]}  Bh5 {[%clk 0:00:32]} 36. Ne3 {[%clk 0:00:49]}  Bf2 {[%clk 0:00:27]} 37. Kd2 {[%clk 0:00:42]}  Bxe3+ {[%clk 0:00:24]} 38. Kxe3 {[%clk 0:00:42]}  Bg6 {[%clk 0:00:23]} 39. Kd2 {[%clk 0:00:42]}  Kd5 {[%clk 0:00:21]} 40. Bc7 {[%clk 0:00:42]}  Ke4 {[%clk 0:00:20]} 41. Bd6 {[%clk 0:00:39]}  Bf5 {[%clk 0:00:20]} 42. Kc3 {[%clk 0:00:35]}  Bg6 {[%clk 0:00:20]} 43. Kb2 {[%clk 0:00:30]}  Kd5 {[%clk 0:00:19]} 44. Bb8 {[%clk 0:00:29]}  Ke4 {[%clk 0:00:19]} 45. c3 {[%clk 0:00:27]}  Kd5 {[%clk 0:00:19]} 46. Bc7 {[%clk 0:00:27]}  Ke4 {[%clk 0:00:19]} 47. Bd6 {[%clk 0:00:28]}  Kd5 {[%clk 0:00:19]} 48. Bb8 {[%clk 0:00:28]}  Ke4 {[%clk 0:00:20]} 49. Ka3 {[%clk 0:00:28]}  Kd5 {[%clk 0:00:20]} 50. Bc7 {[%clk 0:00:28]}  Ke4 {[%clk 0:00:20]} 51. Bd6 {[%clk 0:00:29]}  Kd5 {[%clk 0:00:21]} 52. Bf8 {[%clk 0:00:29]}  Ke4 {[%clk 0:00:19]} 53. Bxc5 {[%clk 0:00:30]}  Kxf4 {[%clk 0:00:19]} 54. Kb4 {[%clk 0:00:28]}  Kf5 {[%clk 0:00:18]} 55. Be7 {[%clk 0:00:24]}  Ke6 {[%clk 0:00:18]} 56. Bf6 {[%clk 0:00:25]}  Kd5 {[%clk 0:00:18]} 57. Ka5 {[%clk 0:00:25]}  Bb1 {[%clk 0:00:12]} 58. Kxa6 {[%clk 0:00:24]}  Ke6 {[%clk 0:00:10]} 59. a4 {[%clk 0:00:23]}  Bc2 {[%clk 0:00:09]} 60. axb5 {[%clk 0:00:22]}  cxb5 {[%clk 0:00:09]} 61. Kxb5 {[%clk 0:00:21]}  Bxb3 {[%clk 0:00:10]} 62. c4 {[%clk 0:00:22]}  Bc2 {[%clk 0:00:07]} 63. Kb6 {[%clk 0:00:21]}  Kd7 {[%clk 0:00:07]} 64. Kc5 {[%clk 0:00:17]}  Kc8 {[%clk 0:00:07]} 65. Kd5 {[%clk 0:00:18]}  Bg6 {[%clk 0:00:07]} 66. c5 {[%clk 0:00:19]}  Bf5 {[%clk 0:00:07]} 67. Be5 {[%clk 0:00:20]}  Bg6 {[%clk 0:00:07]} 68. Kd6 {[%clk 0:00:21]}  Bf5 {[%clk 0:00:08]} 69. Ke7 {[%clk 0:00:22]}  Bg6 {[%clk 0:00:08]} 70. Kf6 {[%clk 0:00:22]}  Be4 {[%clk 0:00:08]} 71. Bd6 {[%clk 0:00:23]}  Bg6 {[%clk 0:00:09]} 72. Ke5 {[%clk 0:00:24]}  Bb1 {[%clk 0:00:09]} 73. Be7 {[%clk 0:00:23]}  Bg6 {[%clk 0:00:10]} 74. Bf6 {[%clk 0:00:24]}  Bb1 {[%clk 0:00:11]} 75. Kd4 {[%clk 0:00:25]}  Bg6 {[%clk 0:00:11]} 76. Kc3 {[%clk 0:00:26]}  Bf5 {[%clk 0:00:11]} 77. Kd2 {[%clk 0:00:25]}  Bg6 {[%clk 0:00:12]} 78. Be5 {[%clk 0:00:25]}  Bf5 {[%clk 0:00:13]} 79. c6 {[%clk 0:00:26]}  Bg6 {[%clk 0:00:13]} 80. Ke3 {[%clk 0:00:27]}  Bf5 {[%clk 0:00:13]} 81. Kd4 {[%clk 0:00:28]}  Bg6 {[%clk 0:00:13]} 82. Kc5 {[%clk 0:00:29]}  Bf5 {[%clk 0:00:14]} 83. Bd6 {[%clk 0:00:29]}  Bg6 {[%clk 0:00:14]} 84. Kd5 {[%clk 0:00:30]}  Bf5 {[%clk 0:00:15]} 85. Ke5 {[%clk 0:00:31]}  Bg6 {[%clk 0:00:15]} 86. Kf6 {[%clk 0:00:30]}  Bc2 {[%clk 0:00:15]} 87. Be7 {[%clk 0:00:30]}  Bd3 {[%clk 0:00:15]} 88. Bd6 {[%clk 0:00:30]}  Bc2 {[%clk 0:00:16]} 89. Be5 {[%clk 0:00:31]}  Bd3 {[%clk 0:00:16]} 90. Bf4 {[%clk 0:00:32]}  Bc2 {[%clk 0:00:16]} 91. g6 {[%clk 0:00:33]}  Bxg6 {[%clk 0:00:16]} 92. Kg7 {[%clk 0:00:33]}  Bf5 {[%clk 0:00:17]} 93. Kf6 {[%clk 0:00:32]}  Bg6 {[%clk 0:00:17]} 94. Ke5 {[%clk 0:00:32]}  Bd3 {[%clk 0:00:16]} 95. Kd4 {[%clk 0:00:32]}  Bg6 {[%clk 0:00:17]} 96. c7 {[%clk 0:00:32]}  Bf5 {[%clk 0:00:15]} 97. Ke5 {[%clk 0:00:32]}  Bg6 {[%clk 0:00:16]} 98. Kf6 {[%clk 0:00:32]}  Be4 {[%clk 0:00:16]} 99. Ke5 {[%clk 0:00:33]}  Bg6 {[%clk 0:00:16]} 100. Kd4 {[%clk 0:00:34]}  Bf5 {[%clk 0:00:16]} 101. Bg3 {[%clk 0:00:29]}  Bg6 {[%clk 0:00:17]} 102. Ke5 {[%clk 0:00:30]}  Bd3 {[%clk 0:00:17]} 103. Kf4 {[%clk 0:00:31]}  Bg6 {[%clk 0:00:17]} 104. Ke3 {[%clk 0:00:32]}  Bf5 {[%clk 0:00:17]} 105. Bf4 {[%clk 0:00:33]}  Bg6 {[%clk 0:00:17]} 106. Kd4 {[%clk 0:00:34]} 1/2-1/2


[Site "https://www.chess.com"]

[Event "Titled Tuesday Blitz December 14 2021"]
[White "Babazada, Khazar"]
[Black "Baskin, Robert"]
[WhiteFideId "13413554"]
[BlackFideId "24662402"]
[WhiteElo "2302"]
[BlackElo "2488"]
[Result "1-0"]
[Round "02"]
[TimeControl "180+1"]
[Date "2021.12.14"]
[WhiteClock "0:00:43"]
[BlackClock "0:00:23"]

1. Nf3 {[%clk 0:03:00]}  Nf6 {[%clk 0:02:58]} 2. g3 {[%clk 0:03:01]}  c5 {[%clk 0:02:57]} 3. Bg2 {[%clk 0:03:02]}  b6 {[%clk 0:02:57]} 4. O-O {[%clk 0:03:02]}  Bb7 {[%clk 0:02:57]} 5. b3 {[%clk 0:03:02]}  g6 {[%clk 0:02:56]} 6. Bb2 {[%clk 0:02:59]}  Bg7 {[%clk 0:02:56]} 7. c4 {[%clk 0:03:00]}  O-O {[%clk 0:02:57]} 8. d4 {[%clk 0:02:56]}  cxd4 {[%clk 0:02:56]} 9. Qxd4 {[%clk 0:02:55]}  d6 {[%clk 0:02:56]} 10. Qd2 {[%clk 0:02:43]}  Nbd7 {[%clk 0:02:53]} 11. Nc3 {[%clk 0:02:44]}  Rc8 {[%clk 0:02:52]} 12. Rfd1 {[%clk 0:02:44]}  Rc5 {[%clk 0:02:51]} 13. Rac1 {[%clk 0:02:43]}  Qa8 {[%clk 0:02:49]} 14. Ne1 {[%clk 0:02:35]}  Bxg2 {[%clk 0:02:45]} 15. Nxg2 {[%clk 0:02:36]}  a6 {[%clk 0:02:39]} 16. Nf4 {[%clk 0:02:36]}  b5 {[%clk 0:02:17]} 17. Ncd5 {[%clk 0:02:35]}  Re8 {[%clk 0:01:49]} 18. cxb5 {[%clk 0:02:29]}  Ne4 {[%clk 0:01:48]} 19. Qe3 {[%clk 0:02:03]}  Bxb2 {[%clk 0:01:48]} 20. Rxc5 {[%clk 0:02:03]}  Nexc5 {[%clk 0:01:40]} 21. Nc7 {[%clk 0:01:59]}  Qc8 {[%clk 0:01:37]} 22. Nxe8 {[%clk 0:01:59]}  Qxe8 {[%clk 0:01:37]} 23. Nd5 {[%clk 0:02:00]}  axb5 {[%clk 0:01:31]} 24. Qxe7 {[%clk 0:01:03]}  Qxe7 {[%clk 0:01:29]} 25. Nxe7+ {[%clk 0:01:04]}  Kf8 {[%clk 0:01:26]} 26. Nc8 {[%clk 0:01:05]}  b4 {[%clk 0:01:02]} 27. f3 {[%clk 0:01:02]}  Ne6 {[%clk 0:00:52]} 28. Nxd6 {[%clk 0:01:00]}  Ndc5 {[%clk 0:00:46]} 29. Kf2 {[%clk 0:00:57]}  Bd4+ {[%clk 0:00:45]} 30. e3 {[%clk 0:00:57]}  Bc3 {[%clk 0:00:45]} 31. Nc4 {[%clk 0:00:57]}  Ke7 {[%clk 0:00:43]} 32. h4 {[%clk 0:00:56]}  h5 {[%clk 0:00:43]} 33. Nb6 {[%clk 0:00:55]}  Nc7 {[%clk 0:00:39]} 34. Ke2 {[%clk 0:00:49]}  f5 {[%clk 0:00:35]} 35. Nd5+ {[%clk 0:00:48]}  Nxd5 {[%clk 0:00:35]} 36. Rxd5 {[%clk 0:00:49]}  Ne6 {[%clk 0:00:32]} 37. Ra5 {[%clk 0:00:43]}  Be5 {[%clk 0:00:23]} 38. Rxe5 {[%clk 0:00:43]} 1-0


[Site "https://www.chess.com"]